[Event "*** Titled Tuesday Blitz"]
[Site "Chess.com"]
[Date "2020.10.20"]
[Round "1"]
[White "MVM2008"]
[Black "korbul"]
[Result "0-1"]
[WhiteElo "2137"]
[BlackElo "2510"]
[TimeControl "180+1"]
[EndTime "10:07:59 PDT"]
[Termination "korbul won on time"]

1. e4 {[%clk 0:03:00.9]} 1... c5 {[%clk 0:02:59.7]} 2. Nf3 {[%clk 0:02:59.8]}
2... e6 {[%clk 0:02:59.7]} 3. d4 {[%clk 0:02:57.4]} 3... cxd4 {[%clk 0:02:59.9]}
4. Nxd4 {[%clk 0:02:58.3]} 4... Nf6 {[%clk 0:03:00.2]} 5. Nc3 {[%clk 0:02:58.3]}
5... d6 {[%clk 0:03:00.6]} 6. Bc4 {[%clk 0:02:52]} 6... Be7 {[%clk 0:02:59.5]}
7. O-O {[%clk 0:02:51.3]} 7... O-O {[%clk 0:02:59.1]} 8. Be3 {[%clk 0:02:51.4]}
8... Nxe4 {[%clk 0:02:57.4]} 9. Nxe4 {[%clk 0:02:47.8]} 9... d5 {[%clk
0:02:57.8]} 10. Bd3 {[%clk 0:02:41.7]} 10... dxe4 {[%clk 0:02:57.9]} 11. Bxe4
{[%clk 0:02:42.6]} 11... Nd7 {[%clk 0:02:58.3]} 12. Qe2 {[%clk 0:02:21.8]} 12...
Nc5 {[%clk 0:02:57.6]} 13. Bf3 {[%clk 0:02:16.9]} 13... e5 {[%clk 0:02:57.4]}
14. Nb3 {[%clk 0:02:13.4]} 14... Na4 {[%clk 0:02:47.5]} 15. Qb5 {[%clk
0:02:07.4]} 15... Bd7 {[%clk 0:02:31]} 16. Qxe5 {[%clk 0:02:07.4]} 16... Bf6
{[%clk 0:02:30.3]} 17. Qh5 {[%clk 0:02:07.5]} 17... Nxb2 {[%clk 0:02:22.8]} 18.
Bxb7 {[%clk 0:02:03.6]} 18... Rb8 {[%clk 0:02:22.2]} 19. Be4 {[%clk 0:02:02.3]}
19... g6 {[%clk 0:02:21.1]} 20. Qf3 {[%clk 0:02:00.5]} 20... a5 {[%clk
0:02:08.4]} 21. Nc5 {[%clk 0:01:51.3]} 21... Bc8 {[%clk 0:01:59.1]} 22. Bd5
{[%clk 0:01:31]} 22... Bg7 {[%clk 0:01:52.9]} 23. c4 {[%clk 0:01:22.4]} 23...
Rb4 {[%clk 0:01:37.4]} 24. a3 {[%clk 0:01:14.1]} 24... Rxc4 {[%clk 0:01:24.4]}
25. Bxc4 {[%clk 0:01:12.2]} 25... Nxc4 {[%clk 0:01:25.3]} 26. Rad1 {[%clk
0:01:06.7]} 26... Qc7 {[%clk 0:01:25.1]} 27. a4 {[%clk 0:01:03.7]} 27... h5
{[%clk 0:01:17.1]} 28. Ne4 {[%clk 0:01:00.5]} 28... Bg4 {[%clk 0:01:04.3]} 29.
Nf6+ {[%clk 0:00:55.4]} 29... Bxf6 {[%clk 0:00:53.3]} 30. Qxf6 {[%clk
0:00:55.2]} 30... Nxe3 {[%clk 0:00:52]} 31. fxe3 {[%clk 0:00:47]} 31... Bxd1
{[%clk 0:00:50.6]} 32. Rxd1 {[%clk 0:00:47.9]} 32... Qc2 {[%clk 0:00:47.8]} 33.
Qd4 {[%clk 0:00:39.9]} 33... Re8 {[%clk 0:00:41.7]} 34. Rf1 {[%clk 0:00:27.7]}
34... Qe4 {[%clk 0:00:33.5]} 35. Rc1 {[%clk 0:00:20.8]} 35... Qxe3+ {[%clk
0:00:24.3]} 36. Qxe3 {[%clk 0:00:20.8]} 36... Rxe3 {[%clk 0:00:24.8]} 37. Rc5
{[%clk 0:00:21.4]} 37... Re2 {[%clk 0:00:25]} 38. Rxa5 {[%clk 0:00:20.8]} 38...
h4 {[%clk 0:00:23.9]} 39. Kf1 {[%clk 0:00:19.6]} 39... Ra2 {[%clk 0:00:23.1]}
40. Ra8+ {[%clk 0:00:14.8]} 40... Kg7 {[%clk 0:00:23]} 41. a5 {[%clk 0:00:14.8]}
41... h3 {[%clk 0:00:23.2]} 42. gxh3 {[%clk 0:00:05.7]} 42... Rxh2 {[%clk
0:00:22.5]} 43. a6 {[%clk 0:00:06.6]} 43... Rxh3 {[%clk 0:00:22.6]} 44. a7
{[%clk 0:00:07.1]} 44... Ra3 {[%clk 0:00:22.5]} 45. Ke2 {[%clk 0:00:06.8]} 45...
g5 {[%clk 0:00:22.7]} 46. Kd2 {[%clk 0:00:06.6]} 46... g4 {[%clk 0:00:23]} 47.
Ke2 {[%clk 0:00:05.4]} 47... f5 {[%clk 0:00:22.8]} 48. Kf2 {[%clk 0:00:05.5]}
48... f4 {[%clk 0:00:22.9]} 49. Kg2 {[%clk 0:00:05.7]} 49... Ra2+ {[%clk
0:00:21.8]} 50. Kf1 {[%clk 0:00:05.6]} 50... g3 {[%clk 0:00:21.9]} 51. Kg1
{[%clk 0:00:02.1]} 51... f3 {[%clk 0:00:21.4]} 0-1

[Event "*** Titled Tuesday Blitz"]
[Site "Chess.com"]
[Date "2020.10.20"]
[Round "1"]
[White "GiantThresher"]
[Black "anon481216"]
[Result "1-0"]
[WhiteElo "2852"]
[BlackElo "2421"]
[TimeControl "180+1"]
[EndTime "10:08:00 PDT"]
[Termination "GiantThresher won by resignation"]

1. e4 {[%clk 0:02:33.8]} 1... c5 {[%clk 0:02:59.8]} 2. Nf3 {[%clk 0:02:00]} 2...
Nf6 {[%clk 0:02:59.1]} 3. Nc3 {[%clk 0:01:56.7]} 3... d5 {[%clk 0:02:58.8]} 4.
exd5 {[%clk 0:01:54.5]} 4... Nxd5 {[%clk 0:02:56.1]} 5. Bb5+ {[%clk 0:01:54.2]}
5... Bd7 {[%clk 0:02:54]} 6. Bxd7+ {[%clk 0:01:50.3]} 6... Qxd7 {[%clk
0:02:51.1]} 7. O-O {[%clk 0:01:48.5]} 7... Nc6 {[%clk 0:02:50.7]} 8. Re1 {[%clk
0:01:45.9]} 8... e6 {[%clk 0:02:50.6]} 9. d4 {[%clk 0:01:42.7]} 9... cxd4 {[%clk
0:02:42.3]} 10. Nxd4 {[%clk 0:01:40.8]} 10... Nxc3 {[%clk 0:02:38.1]} 11. bxc3
{[%clk 0:01:38.8]} 11... Bc5 {[%clk 0:02:34.5]} 12. Be3 {[%clk 0:01:09.4]} 12...
Bb6 {[%clk 0:02:30.8]} 13. Qg4 {[%clk 0:01:02.3]} 13... O-O {[%clk 0:02:24.8]}
14. Rad1 {[%clk 0:00:56.7]} 14... Ne5 {[%clk 0:02:08.6]} 15. Qg3 {[%clk
0:00:51.7]} 15... Ng6 {[%clk 0:02:01.9]} 16. h4 {[%clk 0:00:44.4]} 16... e5
{[%clk 0:01:52.3]} 17. Nf3 {[%clk 0:00:39.6]} 17... Qf5 {[%clk 0:01:51.1]} 18.
Rd2 {[%clk 0:00:33]} 18... f6 {[%clk 0:01:47.9]} 19. Red1 {[%clk 0:00:26.2]}
19... Rac8 {[%clk 0:01:44.7]} 20. Bxb6 {[%clk 0:00:24.1]} 20... axb6 {[%clk
0:01:44.5]} 21. Rd7 {[%clk 0:00:25]} 21... Rxc3 {[%clk 0:01:41.7]} 22. Rxb7
{[%clk 0:00:25.1]} 22... Rxc2 {[%clk 0:01:40.1]} 23. Rdd7 {[%clk 0:00:24.6]}
23... Kh8 {[%clk 0:01:13.5]} 24. Rxg7 {[%clk 0:00:23.7]} 24... Nf4 {[%clk
0:01:12.8]} 25. Qg4 {[%clk 0:00:19.3]} 25... Qxg4 {[%clk 0:01:09.4]} 26. Rxg4
{[%clk 0:00:20.2]} 26... Ne6 {[%clk 0:01:08]} 27. Rxb6 {[%clk 0:00:15.4]} 27...
Ng7 {[%clk 0:01:07.9]} 28. Ra4 {[%clk 0:00:14.4]} 28... Rfc8 {[%clk 0:01:05.4]}
29. Ra7 {[%clk 0:00:14.5]} 29... e4 {[%clk 0:00:48.3]} 30. Nd4 {[%clk
0:00:13.8]} 30... Rd2 {[%clk 0:00:48]} 31. Rbb7 {[%clk 0:00:12.6]} 31... Rxd4
{[%clk 0:00:37.7]} 32. Rxg7 {[%clk 0:00:12.3]} 32... h5 {[%clk 0:00:37.6]} 33.
Rh7+ {[%clk 0:00:12.4]} 33... Kg8 {[%clk 0:00:38]} 34. Rag7+ {[%clk 0:00:13.1]}
34... Kf8 {[%clk 0:00:37.9]} 35. Rb7 {[%clk 0:00:13.8]} 35... Kg8 {[%clk
0:00:36.3]} 36. Rxh5 {[%clk 0:00:13.6]} 36... Rc1+ {[%clk 0:00:35.7]} 37. Kh2
{[%clk 0:00:13.9]} 37... Rc2 {[%clk 0:00:36]} 38. Rf5 {[%clk 0:00:14.5]} 38...
Rd6 {[%clk 0:00:32.1]} 39. a4 {[%clk 0:00:14.3]} 39... Ra2 {[%clk 0:00:31.3]}
40. a5 {[%clk 0:00:14.6]} 40... Ra6 {[%clk 0:00:28.8]} 41. Re7 {[%clk
0:00:14.6]} 41... R2xa5 {[%clk 0:00:27.8]} 42. Rxa5 {[%clk 0:00:14.4]} 42...
Rxa5 {[%clk 0:00:28]} 43. Rxe4 {[%clk 0:00:15.3]} 43... Kg7 {[%clk 0:00:28]} 44.
Rb4 {[%clk 0:00:15.9]} 44... Kg6 {[%clk 0:00:28.2]} 45. Kg3 {[%clk 0:00:16.5]}
45... Ra3+ {[%clk 0:00:28.4]} 46. f3 {[%clk 0:00:16.7]} 46... Ra2 {[%clk
0:00:28.8]} 47. Rb5 {[%clk 0:00:16.9]} 47... Ra4 {[%clk 0:00:28.6]} 48. Kh3
{[%clk 0:00:17.2]} 48... Ra3 {[%clk 0:00:28.6]} 49. Rb4 {[%clk 0:00:17.5]} 49...
Rc3 {[%clk 0:00:28.6]} 50. Re4 {[%clk 0:00:17.6]} 50... Rd3 {[%clk 0:00:28.7]}
51. Kg3 {[%clk 0:00:17.8]} 51... Rc3 {[%clk 0:00:27.5]} 52. Kf2 {[%clk 0:00:18]}
52... Rc2+ {[%clk 0:00:27.2]} 53. Re2 {[%clk 0:00:18.3]} 53... Rc4 {[%clk
0:00:27.7]} 54. g4 {[%clk 0:00:19.2]} 54... Rc3 {[%clk 0:00:27.7]} 55. Kg3
{[%clk 0:00:19.7]} 55... Rb3 {[%clk 0:00:27.7]} 56. Kf4 {[%clk 0:00:20.2]} 56...
Rb4+ {[%clk 0:00:27.7]} 57. Re4 {[%clk 0:00:20.5]} 57... Rb1 {[%clk 0:00:28.1]}
58. Ra4 {[%clk 0:00:21.1]} 58... Rh1 {[%clk 0:00:27.3]} 59. h5+ {[%clk
0:00:21.5]} 59... Kh6 {[%clk 0:00:27.2]} 60. Kf5 {[%clk 0:00:21.6]} 60... Rf1
{[%clk 0:00:26.3]} 61. f4 {[%clk 0:00:22.1]} 61... Kg7 {[%clk 0:00:26.5]} 62.
Ra7+ {[%clk 0:00:22]} 62... Kg8 {[%clk 0:00:25.7]} 63. Ra6 {[%clk 0:00:21]}
63... Kg7 {[%clk 0:00:25.2]} 64. Rxf6 {[%clk 0:00:21.2]} 1-0

[Event "*** Titled Tuesday Blitz"]
[Site "Chess.com"]
[Date "2020.10.20"]
[Round "1"]
[White "SCIM"]
[Black "C_K_G"]
[Result "0-1"]
[WhiteElo "2480"]
[BlackElo "2090"]
[TimeControl "180+1"]
[EndTime "10:08:00 PDT"]
[Termination "C_K_G won by resignation"]

1. d4 {[%clk 0:03:00.9]} 1... d5 {[%clk 0:02:58.6]} 2. c4 {[%clk 0:03:00]} 2...
c6 {[%clk 0:02:58.7]} 3. Nf3 {[%clk 0:02:59.9]} 3... Nf6 {[%clk 0:02:54.9]} 4.
e3 {[%clk 0:02:59.5]} 4... e6 {[%clk 0:02:52.4]} 5. b3 {[%clk 0:02:57.4]} 5...
Nbd7 {[%clk 0:02:52.3]} 6. Bd3 {[%clk 0:02:57]} 6... Bd6 {[%clk 0:02:50]} 7. Bb2
{[%clk 0:02:53.3]} 7... O-O {[%clk 0:02:48.9]} 8. O-O {[%clk 0:02:53.4]} 8... b6
{[%clk 0:02:44.1]} 9. Nc3 {[%clk 0:02:51.1]} 9... Bb7 {[%clk 0:02:44]} 10. Qe2
{[%clk 0:02:45.5]} 10... e5 {[%clk 0:02:38.7]} 11. dxe5 {[%clk 0:02:39.1]} 11...
Nxe5 {[%clk 0:02:36.1]} 12. Nxe5 {[%clk 0:02:38.1]} 12... Bxe5 {[%clk
0:02:35.8]} 13. cxd5 {[%clk 0:02:37.6]} 13... cxd5 {[%clk 0:02:30.4]} 14. Nb5
{[%clk 0:02:25.9]} 14... Bxb2 {[%clk 0:02:26.7]} 15. Qxb2 {[%clk 0:02:26.8]}
15... Ne4 {[%clk 0:02:19.2]} 16. Rfd1 {[%clk 0:02:10.6]} 16... Nc5 {[%clk
0:02:13.9]} 17. Nd4 {[%clk 0:02:02.5]} 17... Nxd3 {[%clk 0:02:07.1]} 18. Rxd3
{[%clk 0:02:03.4]} 18... Qf6 {[%clk 0:02:05.7]} 19. Rad1 {[%clk 0:02:01.2]}
19... Rfc8 {[%clk 0:02:01.1]} 20. h3 {[%clk 0:02:00.8]} 20... h6 {[%clk
0:01:55.9]} 21. R3d2 {[%clk 0:01:54.9]} 21... Rc5 {[%clk 0:01:54.1]} 22. Nf3
{[%clk 0:01:48.4]} 22... Qxb2 {[%clk 0:01:50]} 23. Rxb2 {[%clk 0:01:49.3]} 23...
Rac8 {[%clk 0:01:47.5]} 24. Nd4 {[%clk 0:01:49.3]} 24... Rc1 {[%clk 0:01:41.7]}
25. Rd2 {[%clk 0:01:49.5]} 25... g6 {[%clk 0:01:38.2]} 26. g4 {[%clk 0:01:40.2]}
26... Kg7 {[%clk 0:01:33.5]} 27. Kg2 {[%clk 0:01:39.8]} 27... a5 {[%clk
0:01:27.7]} 28. Kg3 {[%clk 0:01:23.3]} 28... Kf6 {[%clk 0:01:25.2]} 29. Rxc1
{[%clk 0:01:03.1]} 29... Rxc1 {[%clk 0:01:24]} 30. Rc2 {[%clk 0:01:02.7]} 30...
Rxc2 {[%clk 0:01:20.1]} 31. Nxc2 {[%clk 0:01:03.6]} 31... Ke5 {[%clk 0:01:17.9]}
32. f3 {[%clk 0:00:56]} 32... f5 {[%clk 0:01:15.3]} 33. Nd4 {[%clk 0:00:50.6]}
33... f4+ {[%clk 0:01:12.2]} 34. Kf2 {[%clk 0:00:48.2]} 34... fxe3+ {[%clk
0:01:10.5]} 35. Kxe3 {[%clk 0:00:49.1]} 35... g5 {[%clk 0:01:04.9]} 36. Nf5
{[%clk 0:00:46.6]} 36... Ba6 {[%clk 0:00:55.2]} 37. Nxh6 {[%clk 0:00:39.6]}
37... d4+ {[%clk 0:00:52.6]} 38. Kf2 {[%clk 0:00:21]} 38... Kf4 {[%clk
0:00:45.8]} 39. Nf5 {[%clk 0:00:20.3]} 39... d3 {[%clk 0:00:42.9]} 40. Ne3
{[%clk 0:00:15.8]} 40... d2 {[%clk 0:00:40]} 41. Nd5+ {[%clk 0:00:14.5]} 41...
Ke5 {[%clk 0:00:38.3]} 42. Nc3 {[%clk 0:00:15.4]} 42... Kd4 {[%clk 0:00:35.1]}
43. Nd1 {[%clk 0:00:14.3]} 43... Kd3 {[%clk 0:00:31.4]} 44. f4 {[%clk
0:00:14.5]} 44... gxf4 {[%clk 0:00:27.9]} 45. g5 {[%clk 0:00:10.5]} 45... Kc2
{[%clk 0:00:25.7]} 46. g6 {[%clk 0:00:10.7]} 46... Kxd1 {[%clk 0:00:21.8]} 47.
g7 {[%clk 0:00:10.4]} 47... Kc2 {[%clk 0:00:21.1]} 48. g8=Q {[%clk 0:00:08.9]}
48... d1=Q {[%clk 0:00:19.5]} 49. Qg6+ {[%clk 0:00:07.2]} 49... Kb2 {[%clk
0:00:18]} 50. Qf6+ {[%clk 0:00:05]} 50... Kxa2 {[%clk 0:00:16.4]} 51. Qxf4
{[%clk 0:00:05.2]} 51... Qf1+ {[%clk 0:00:14.5]} 0-1

[Event "*** Titled Tuesday Blitz"]
[Site "Chess.com"]
[Date "2020.10.20"]
[Round "1"]
[White "Rakesh"]
[Black "Sn00pPawn"]
[Result "1/2-1/2"]
[WhiteElo "2458"]
[BlackElo "1996"]
[TimeControl "180+1"]
[EndTime "10:08:01 PDT"]
[Termination "Game drawn by repetition"]

1. e4 {[%clk 0:02:28.3]} 1... c5 {[%clk 0:02:59.3]} 2. c3 {[%clk 0:02:28.3]}
2... d5 {[%clk 0:02:54]} 3. exd5 {[%clk 0:02:28.2]} 3... Qxd5 {[%clk 0:02:54.9]}
4. d4 {[%clk 0:02:28.5]} 4... Nf6 {[%clk 0:02:54.4]} 5. Nf3 {[%clk 0:02:28.9]}
5... e6 {[%clk 0:02:53.3]} 6. Be3 {[%clk 0:02:28]} 6... cxd4 {[%clk 0:02:52.2]}
7. cxd4 {[%clk 0:02:28.9]} 7... Nc6 {[%clk 0:02:49.3]} 8. Nc3 {[%clk 0:02:29.8]}
8... Qd8 {[%clk 0:02:49.4]} 9. Bd3 {[%clk 0:02:28.6]} 9... Be7 {[%clk
0:02:49.4]} 10. a3 {[%clk 0:02:29]} 10... O-O {[%clk 0:02:49.3]} 11. O-O {[%clk
0:02:29.3]} 11... b6 {[%clk 0:02:34.6]} 12. Qe2 {[%clk 0:02:26.5]} 12... Bb7
{[%clk 0:02:33.2]} 13. Rad1 {[%clk 0:02:27]} 13... Nd5 {[%clk 0:01:57.2]} 14.
Bb1 {[%clk 0:02:27.9]} 14... Rc8 {[%clk 0:01:45.6]} 15. Ne4 {[%clk 0:02:20]}
15... h6 {[%clk 0:01:35.9]} 16. Qd3 {[%clk 0:02:00.9]} 16... f5 {[%clk
0:01:31.7]} 17. Nc3 {[%clk 0:01:25.6]} 17... Rf6 {[%clk 0:01:28.4]} 18. Rfe1
{[%clk 0:01:23.7]} 18... g5 {[%clk 0:01:21.3]} 19. Ne5 {[%clk 0:00:44.5]} 19...
Nxc3 {[%clk 0:01:12]} 20. bxc3 {[%clk 0:00:36.1]} 20... Nxe5 {[%clk 0:01:11.4]}
21. dxe5 {[%clk 0:00:37]} 21... Qxd3 {[%clk 0:01:08.2]} 22. Rxd3 {[%clk
0:00:37.9]} 22... Rf7 {[%clk 0:01:06.7]} 23. Rd7 {[%clk 0:00:38.8]} 23... Bxa3
{[%clk 0:01:05.4]} 24. Red1 {[%clk 0:00:35.7]} 24... Bc6 {[%clk 0:01:02.6]} 25.
Rd8+ {[%clk 0:00:32.2]} 25... Rxd8 {[%clk 0:00:57.2]} 26. Rxd8+ {[%clk
0:00:33.1]} 26... Rf8 {[%clk 0:00:58]} 27. Rd1 {[%clk 0:00:32.2]} 27... Kf7
{[%clk 0:00:56.6]} 28. h4 {[%clk 0:00:32.3]} 28... f4 {[%clk 0:00:53]} 29. Bd4
{[%clk 0:00:31.7]} 29... gxh4 {[%clk 0:00:50]} 30. f3 {[%clk 0:00:27.1]} 30...
h3 {[%clk 0:00:45.8]} 31. gxh3 {[%clk 0:00:25.7]} 31... Rg8+ {[%clk 0:00:45.2]}
32. Kf2 {[%clk 0:00:23.7]} 32... Rg3 {[%clk 0:00:43.1]} 33. Be4 {[%clk
0:00:23.7]} 33... Bxe4 {[%clk 0:00:38]} 34. fxe4 {[%clk 0:00:24.6]} 34... Rxh3
{[%clk 0:00:38.1]} 35. Ra1 {[%clk 0:00:25.1]} 35... Bc5 {[%clk 0:00:28.9]} 36.
Rxa7+ {[%clk 0:00:26]} 36... Ke8 {[%clk 0:00:26.8]} 37. Rc7 {[%clk 0:00:25.5]}
37... Rxc3 {[%clk 0:00:17.9]} 38. Bxc5 {[%clk 0:00:24.9]} 38... bxc5 {[%clk
0:00:14.9]} 39. Rh7 {[%clk 0:00:25.8]} 39... Re3 {[%clk 0:00:13.9]} 40. Rxh6
{[%clk 0:00:25.3]} 40... Ke7 {[%clk 0:00:13.8]} 41. Rh7+ {[%clk 0:00:25.1]}
41... Kd8 {[%clk 0:00:14]} 42. Rh6 {[%clk 0:00:23.7]} 42... Kd7 {[%clk
0:00:14.3]} 43. Rh7+ {[%clk 0:00:23.8]} 43... Kc8 {[%clk 0:00:14.1]} 44. Re7
{[%clk 0:00:22.5]} 44... Rxe4 {[%clk 0:00:14.1]} 45. Rxe6 {[%clk 0:00:23]} 45...
c4 {[%clk 0:00:13.4]} 46. Kf3 {[%clk 0:00:22]} 46... Rd4 {[%clk 0:00:13.1]} 47.
Rc6+ {[%clk 0:00:19.5]} 47... Kd7 {[%clk 0:00:13.3]} 48. Rc5 {[%clk 0:00:20.1]}
48... Ke6 {[%clk 0:00:13.5]} 49. Kg4 {[%clk 0:00:18.6]} 49... Re4 {[%clk
0:00:12.3]} 50. Kf3 {[%clk 0:00:18.4]} 50... Rd4 {[%clk 0:00:09.2]} 51. Kg4
{[%clk 0:00:18]} 51... Re4 {[%clk 0:00:07]} 52. Kf3 {[%clk 0:00:18.3]} 52... Rd4
{[%clk 0:00:06.9]} 1/2-1/2

[Event "*** Titled Tuesday Blitz"]
[Site "Chess.com"]
[Date "2020.10.20"]
[Round "1"]
[White "Vanina1989"]
[Black "Smile2005"]
[Result "1-0"]
[WhiteElo "2671"]
[BlackElo "2332"]
[TimeControl "180+1"]
[EndTime "10:08:02 PDT"]
[Termination "Vanina1989 won by checkmate"]

1. d4 {[%clk 0:03:00]} 1... Nf6 {[%clk 0:02:50.9]} 2. c4 {[%clk 0:02:56.4]} 2...
g6 {[%clk 0:02:40]} 3. Nc3 {[%clk 0:02:53.9]} 3... Bg7 {[%clk 0:02:40.9]} 4. e4
{[%clk 0:02:53.3]} 4... O-O {[%clk 0:02:41.8]} 5. Nf3 {[%clk 0:02:53.6]} 5... d6
{[%clk 0:02:42]} 6. Be2 {[%clk 0:02:54]} 6... e5 {[%clk 0:02:42.1]} 7. O-O
{[%clk 0:02:53.8]} 7... exd4 {[%clk 0:02:42.4]} 8. Nxd4 {[%clk 0:02:53.7]} 8...
Re8 {[%clk 0:02:43.3]} 9. f3 {[%clk 0:02:53.1]} 9... Nc6 {[%clk 0:02:43.6]} 10.
Nxc6 {[%clk 0:02:51.5]} 10... bxc6 {[%clk 0:02:44.5]} 11. Bg5 {[%clk 0:02:51]}
11... h6 {[%clk 0:02:44.5]} 12. Bf4 {[%clk 0:02:40.6]} 12... Nh5 {[%clk
0:02:41.4]} 13. Be3 {[%clk 0:02:35]} 13... f5 {[%clk 0:02:41.4]} 14. Qd2 {[%clk
0:02:32.3]} 14... g5 {[%clk 0:02:26.4]} 15. Rae1 {[%clk 0:02:15]} 15... c5
{[%clk 0:02:16.6]} 16. Nd5 {[%clk 0:02:02.3]} 16... Nf6 {[%clk 0:02:07]} 17. Bd3
{[%clk 0:01:40.7]} 17... Nxd5 {[%clk 0:01:45.5]} 18. exd5 {[%clk 0:01:31.3]}
18... Qf6 {[%clk 0:01:38.5]} 19. Bf2 {[%clk 0:01:23.1]} 19... Bd7 {[%clk
0:01:34]} 20. Rb1 {[%clk 0:01:05.4]} 20... Reb8 {[%clk 0:01:27.5]} 21. b3 {[%clk
0:00:58.9]} 21... a5 {[%clk 0:01:27.3]} 22. f4 {[%clk 0:00:52]} 22... g4 {[%clk
0:01:21]} 23. Rfe1 {[%clk 0:00:48.1]} 23... a4 {[%clk 0:00:55.5]} 24. b4 {[%clk
0:00:42.2]} 24... cxb4 {[%clk 0:00:52.3]} 25. Rxb4 {[%clk 0:00:39.6]} 25... Qc3
{[%clk 0:00:26.3]} 26. Qxc3 {[%clk 0:00:39.3]} 26... Bxc3 {[%clk 0:00:25.8]} 27.
Rxb8+ {[%clk 0:00:39.4]} 27... Rxb8 {[%clk 0:00:26.7]} 28. Re7 {[%clk
0:00:39.5]} 28... Rd8 {[%clk 0:00:19.8]} 29. c5 {[%clk 0:00:39.6]} 29... Bf6
{[%clk 0:00:17.3]} 30. Re2 {[%clk 0:00:39.6]} 30... dxc5 {[%clk 0:00:16.5]} 31.
Bxc5 {[%clk 0:00:39.2]} 31... Rb8 {[%clk 0:00:16.7]} 32. Bc4 {[%clk 0:00:32.8]}
32... Kg7 {[%clk 0:00:15.9]} 33. Rc2 {[%clk 0:00:30.5]} 33... Rb1+ {[%clk
0:00:15.7]} 34. Kf2 {[%clk 0:00:30.6]} 34... Rh1 {[%clk 0:00:11]} 35. Bd3 {[%clk
0:00:22.8]} 35... Rxh2 {[%clk 0:00:07.9]} 36. Be3 {[%clk 0:00:22.4]} 36... Bd8
{[%clk 0:00:08]} 37. Bd4+ {[%clk 0:00:22.6]} 37... Kf7 {[%clk 0:00:07.9]} 38.
Be5 {[%clk 0:00:22.7]} 38... h5 {[%clk 0:00:05.8]} 39. Bxc7 {[%clk 0:00:20.2]}
39... Bh4+ {[%clk 0:00:06]} 40. Ke3 {[%clk 0:00:18.8]} 40... Bg3 {[%clk
0:00:03.6]} 41. Be5 {[%clk 0:00:18.6]} 41... h4 {[%clk 0:00:03.5]} 42. Rc7
{[%clk 0:00:18.3]} 42... Ke8 {[%clk 0:00:03.9]} 43. Ra7 {[%clk 0:00:15.9]} 43...
Rxg2 {[%clk 0:00:03.9]} 44. Ra8+ {[%clk 0:00:16.1]} 44... Kf7 {[%clk 0:00:04.3]}
45. Bc4 {[%clk 0:00:14.2]} 45... Bf2+ {[%clk 0:00:04.4]} 46. Kd3 {[%clk
0:00:14.1]} 46... h3 {[%clk 0:00:01.1]} 47. d6+ {[%clk 0:00:14.6]} 47... Kg6
{[%clk 0:00:01.5]} 48. Rg8+ {[%clk 0:00:14.2]} 48... Kh7 {[%clk 0:00:01.9]} 49.
Bf7 {[%clk 0:00:13.5]} 49... h2 {[%clk 0:00:01.8]} 50. Rh8# {[%clk 0:00:13.9]}
1-0

[Event "*** Titled Tuesday Blitz"]
[Site "Chess.com"]
[Date "2020.10.20"]
[Round "1"]
[White "OhanyanEminChess"]
[Black "JuliaEfremova"]
[Result "1-0"]
[WhiteElo "2666"]
[BlackElo "2327"]
[TimeControl "180+1"]
[EndTime "10:08:03 PDT"]
[Termination "OhanyanEminChess won by resignation"]

1. e4 {[%clk 0:02:59.9]} 1... d5 {[%clk 0:02:58.5]} 2. exd5 {[%clk 0:02:59.7]}
2... Qxd5 {[%clk 0:02:59.4]} 3. Nf3 {[%clk 0:02:50.1]} 3... Nf6 {[%clk
0:02:58.5]} 4. Be2 {[%clk 0:02:44.2]} 4... Bg4 {[%clk 0:02:55.8]} 5. h3 {[%clk
0:02:42]} 5... Bh5 {[%clk 0:02:54.7]} 6. d4 {[%clk 0:02:32.7]} 6... e6 {[%clk
0:02:50.4]} 7. c4 {[%clk 0:02:24]} 7... Qd8 {[%clk 0:02:42.7]} 8. O-O {[%clk
0:02:20.2]} 8... Be7 {[%clk 0:02:41.5]} 9. Be3 {[%clk 0:02:17.4]} 9... O-O
{[%clk 0:02:40.6]} 10. Nc3 {[%clk 0:02:12.8]} 10... c6 {[%clk 0:02:37]} 11. Qd2
{[%clk 0:02:11.1]} 11... Nbd7 {[%clk 0:02:33.9]} 12. Rad1 {[%clk 0:02:10.3]}
12... Qc7 {[%clk 0:02:26.7]} 13. Rfe1 {[%clk 0:02:05.1]} 13... Rad8 {[%clk
0:02:24.8]} 14. Qc2 {[%clk 0:02:00]} 14... Bg6 {[%clk 0:02:21.7]} 15. Bd3 {[%clk
0:01:59.4]} 15... Bxd3 {[%clk 0:02:20.1]} 16. Rxd3 {[%clk 0:01:56.5]} 16... a6
{[%clk 0:02:13.4]} 17. Red1 {[%clk 0:01:55.5]} 17... h6 {[%clk 0:01:59.7]} 18.
b3 {[%clk 0:01:43.9]} 18... e5 {[%clk 0:01:49.5]} 19. dxe5 {[%clk 0:01:37.3]}
19... Nxe5 {[%clk 0:01:48.9]} 20. Nxe5 {[%clk 0:01:34.5]} 20... Qxe5 {[%clk
0:01:47.8]} 21. Rxd8 {[%clk 0:01:33.8]} 21... Rxd8 {[%clk 0:01:46.3]} 22. Rxd8+
{[%clk 0:01:33.9]} 22... Bxd8 {[%clk 0:01:47.2]} 23. g3 {[%clk 0:01:28.5]} 23...
Ba5 {[%clk 0:01:40]} 24. Ne2 {[%clk 0:01:22.4]} 24... Ne4 {[%clk 0:01:30.9]} 25.
Bf4 {[%clk 0:01:08.2]} 25... Qf5 {[%clk 0:01:13.3]} 26. Nd4 {[%clk 0:00:44.1]}
26... Qg6 {[%clk 0:01:11]} 27. Kg2 {[%clk 0:00:38.4]} 27... Bc3 {[%clk
0:00:58.4]} 28. Nf3 {[%clk 0:00:35.2]} 28... Bf6 {[%clk 0:00:58.3]} 29. Nd2
{[%clk 0:00:30.8]} 29... Nxd2 {[%clk 0:00:51.9]} 30. Qxg6 {[%clk 0:00:30]} 30...
fxg6 {[%clk 0:00:52.8]} 31. Bxd2 {[%clk 0:00:30.5]} 31... Kf7 {[%clk 0:00:52.7]}
32. Kf3 {[%clk 0:00:24.6]} 32... Ke6 {[%clk 0:00:51.7]} 33. Ke4 {[%clk
0:00:23.9]} 33... Bb2 {[%clk 0:00:49.2]} 34. f4 {[%clk 0:00:21.5]} 34... b5
{[%clk 0:00:36.1]} 35. g4 {[%clk 0:00:20.9]} 35... bxc4 {[%clk 0:00:34.2]} 36.
bxc4 {[%clk 0:00:21.8]} 36... Bf6 {[%clk 0:00:32.9]} 37. Bb4 {[%clk 0:00:19.8]}
37... Bb2 {[%clk 0:00:28.5]} 38. Be1 {[%clk 0:00:10.1]} 38... Kd6 {[%clk
0:00:25.3]} 39. Bf2 {[%clk 0:00:09.6]} 39... Ke6 {[%clk 0:00:23]} 40. Bh4 {[%clk
0:00:07.8]} 40... Bc3 {[%clk 0:00:21.6]} 41. Bg3 {[%clk 0:00:06.4]} 41... Bb2
{[%clk 0:00:21.2]} 42. f5+ {[%clk 0:00:05.2]} 42... gxf5+ {[%clk 0:00:22.1]} 43.
gxf5+ {[%clk 0:00:06.1]} 43... Kd7 {[%clk 0:00:21.6]} 44. Kf3 {[%clk 0:00:04.3]}
44... Ke7 {[%clk 0:00:21.3]} 45. Bh4+ {[%clk 0:00:02.5]} 45... Kd6 {[%clk
0:00:20.2]} 46. Ke4 {[%clk 0:00:02.4]} 46... Kc5 {[%clk 0:00:20.5]} 47. Kd3
{[%clk 0:00:02.7]} 47... Bd4 {[%clk 0:00:20.5]} 48. Be7+ {[%clk 0:00:02.4]}
48... Kb6 {[%clk 0:00:19.9]} 49. Kxd4 {[%clk 0:00:03.1]} 49... c5+ {[%clk
0:00:20.8]} 50. Bxc5+ {[%clk 0:00:02.9]} 50... Kc6 {[%clk 0:00:21.7]} 51. Bf8
{[%clk 0:00:03.6]} 51... a5 {[%clk 0:00:22.6]} 52. Bxg7 {[%clk 0:00:03.9]} 52...
a4 {[%clk 0:00:23.5]} 53. Bxh6 {[%clk 0:00:04.8]} 53... Kd7 {[%clk 0:00:21.7]}
54. Bc1 {[%clk 0:00:05.7]} 54... Ke7 {[%clk 0:00:22.6]} 55. Ba3+ {[%clk
0:00:06.6]} 55... Kf7 {[%clk 0:00:23.3]} 56. Ke4 {[%clk 0:00:07.5]} 56... Kf6
{[%clk 0:00:24.2]} 57. Bb4 {[%clk 0:00:08.4]} 57... Kg5 {[%clk 0:00:24.5]} 58.
a3 {[%clk 0:00:09.3]} 58... Kh4 {[%clk 0:00:25.4]} 59. Ke5 {[%clk 0:00:10.2]}
59... Kg3 {[%clk 0:00:26.3]} 60. f6 {[%clk 0:00:10.4]} 60... Kxh3 {[%clk
0:00:27.2]} 61. f7 {[%clk 0:00:11]} 61... Kg2 {[%clk 0:00:28.1]} 62. f8=Q {[%clk
0:00:11.9]} 62... Kg3 {[%clk 0:00:28.8]} 63. c5 {[%clk 0:00:12.3]} 63... Kg4
{[%clk 0:00:29.7]} 64. c6 {[%clk 0:00:13.2]} 1-0